[Event "Titled Tuesday Blitz June 13 Early 2023"]
[White "Iskusnyh, Sergei"]
[Black "FunnyDuck66"]
[WhiteFideId "4120027"]
[WhiteElo "2492"]
[BlackElo "2429"]
[Result "0-1"]
[Round "6"]
[TimeControl "180+2"]
[Date "2023.06.13"]
[WhiteClock "0:00:01"]
[BlackClock "0:00:24"]
[Board "123"]

1. d4 {[%clk 0:03:00]}  Nf6 {[%clk 0:02:55]} 2. c4 {[%clk 0:03:00]}  e6 {[%clk 0:02:54]} 3. g3 {[%clk 0:03:00]}  Bb4+ {[%clk 0:02:48]} 4. Bd2 {[%clk 0:02:59]}  Qe7 {[%clk 0:02:45]} 5. Bg2 {[%clk 0:02:56]}  O-O {[%clk 0:02:32]} 6. e3 {[%clk 0:02:51]}  a5 {[%clk 0:02:30]} 7. Ne2 {[%clk 0:02:40]}  d6 {[%clk 0:02:26]} 8. Nbc3 {[%clk 0:02:33]}  Nbd7 {[%clk 0:02:23]} 9. a3 {[%clk 0:02:26]}  Bxc3 {[%clk 0:02:21]} 10. Nxc3 {[%clk 0:02:27]}  e5 {[%clk 0:01:58]} 11. O-O {[%clk 0:02:26]}  c6 {[%clk 0:01:54]} 12. b3 {[%clk 0:02:08]}  Re8 {[%clk 0:01:44]} 13. Qc2 {[%clk 0:02:07]}  e4 {[%clk 0:01:34]} 14. b4 {[%clk 0:02:02]}  b6 {[%clk 0:01:15]} 15. Rab1 {[%clk 0:01:14]}  Ba6 {[%clk 0:01:08]} 16. b5 {[%clk 0:01:10]}  cxb5 {[%clk 0:01:04]} 17. Nxb5 {[%clk 0:01:09]}  Rec8 {[%clk 0:01:01]} 18. Qa2 {[%clk 0:01:06]}  Qe6 {[%clk 0:00:41]} 19. Rfc1 {[%clk 0:01:03]}  d5 {[%clk 0:00:40]} 20. cxd5 {[%clk 0:00:19]}  Nxd5 {[%clk 0:00:41]} 21. a4 {[%clk 0:00:19]}  N7f6 {[%clk 0:00:33]} 22. Bf1 {[%clk 0:00:18]}  h5 {[%clk 0:00:29]} 23. Rxc8+ {[%clk 0:00:16]}  Rxc8 {[%clk 0:00:28]} 24. Rc1 {[%clk 0:00:15]}  Rxc1 {[%clk 0:00:27]} 25. Bxc1 {[%clk 0:00:16]}  h4 {[%clk 0:00:25]} 26. Qc2 {[%clk 0:00:15]}  Bxb5 {[%clk 0:00:25]} 27. Bxb5 {[%clk 0:00:14]}  Qf5 {[%clk 0:00:25]} 28. Bf1 {[%clk 0:00:13]}  hxg3 {[%clk 0:00:25]} 29. hxg3 {[%clk 0:00:12]}  Ng4 {[%clk 0:00:25]} 30. Bg2 {[%clk 0:00:11]}  Ndf6 {[%clk 0:00:24]} 31. Qc7 {[%clk 0:00:09]}  Qxf2+ {[%clk 0:00:24]} 32. Kh1 {[%clk 0:00:01]}  Qe1+ {[%clk 0:00:24]} 0-1


[Site "https://www.chess.com"]

[Event "Titled Tuesday Blitz June 13 Early 2023"]
[White "Toczek, Grzegorz"]
[Black "Dixit, Nikhil"]
[WhiteFideId "1106457"]
[BlackFideId "5059534"]
[WhiteElo "2093"]
[BlackElo "2207"]
[Result "1-0"]
[Round "6"]
[TimeControl "180+2"]
[Date "2023.06.13"]
[WhiteClock "0:00:31"]
[BlackClock "0:00:09"]
[Board "125"]

1. e4 {[%clk 0:03:00]}  c5 {[%clk 0:02:40]} 2. Nc3 {[%clk 0:03:00]}  Nc6 {[%clk 0:02:33]} 3. Bb5 {[%clk 0:02:59]}  Nd4 {[%clk 0:02:05]} 4. Bc4 {[%clk 0:02:55]}  e6 {[%clk 0:01:56]} 5. Nf3 {[%clk 0:02:54]}  Nxf3+ {[%clk 0:01:32]} 6. Qxf3 {[%clk 0:02:54]}  Ne7 {[%clk 0:01:33]} 7. d3 {[%clk 0:02:53]}  Nc6 {[%clk 0:01:24]} 8. Qg3 {[%clk 0:02:47]}  d6 {[%clk 0:01:11]} 9. Bg5 {[%clk 0:02:41]}  Qd7 {[%clk 0:00:49]} 10. a3 {[%clk 0:02:35]}  a6 {[%clk 0:00:35]} 11. Ba2 {[%clk 0:02:27]}  b5 {[%clk 0:00:34]} 12. O-O {[%clk 0:02:22]}  h6 {[%clk 0:00:33]} 13. Bd2 {[%clk 0:02:19]}  g6 {[%clk 0:00:31]} 14. f4 {[%clk 0:02:19]}  Bg7 {[%clk 0:00:32]} 15. f5 {[%clk 0:02:19]}  Be5 {[%clk 0:00:32]} 16. fxe6 {[%clk 0:02:03]}  fxe6 {[%clk 0:00:26]} 17. Qxg6+ {[%clk 0:02:02]}  Kd8 {[%clk 0:00:26]} 18. Rf7 {[%clk 0:01:57]}  Qe8 {[%clk 0:00:25]} 19. Raf1 {[%clk 0:01:51]}  Ne7 {[%clk 0:00:24]} 20. Qg4 {[%clk 0:01:42]}  Rg8 {[%clk 0:00:24]} 21. Qe2 {[%clk 0:01:37]}  Ng6 {[%clk 0:00:23]} 22. Kh1 {[%clk 0:01:24]}  Bd7 {[%clk 0:00:20]} 23. Nd1 {[%clk 0:01:13]}  Kc7 {[%clk 0:00:20]} 24. c3 {[%clk 0:01:13]}  Kc6 {[%clk 0:00:20]} 25. d4 {[%clk 0:01:12]}  Bg7 {[%clk 0:00:18]} 26. d5+ {[%clk 0:01:11]}  Kb6 {[%clk 0:00:19]} 27. a4 {[%clk 0:01:09]}  Be5 {[%clk 0:00:17]} 28. Ne3 {[%clk 0:01:03]}  Nh4 {[%clk 0:00:16]} 29. g3 {[%clk 0:00:59]}  Ng6 {[%clk 0:00:15]} 30. dxe6 {[%clk 0:00:58]}  Bxe6 {[%clk 0:00:16]} 31. Nd5+ {[%clk 0:00:58]}  Bxd5 {[%clk 0:00:16]} 32. Bxd5 {[%clk 0:00:57]}  Rb8 {[%clk 0:00:16]} 33. axb5 {[%clk 0:00:57]}  Qxb5 {[%clk 0:00:15]} 34. Bc4 {[%clk 0:00:56]}  Qc6 {[%clk 0:00:14]} 35. Bd5 {[%clk 0:00:56]}  Qb5 {[%clk 0:00:14]} 36. c4 {[%clk 0:00:56]}  Qxb2 {[%clk 0:00:12]} 37. Qd3 {[%clk 0:00:37]}  a5 {[%clk 0:00:12]} 38. Rb1 {[%clk 0:00:34]}  Qxb1+ {[%clk 0:00:12]} 39. Qxb1+ {[%clk 0:00:34]}  Ka6 {[%clk 0:00:09]} 40. Rb7 {[%clk 0:00:31]} 1-0


[Site "https://www.chess.com"]

[Event "Titled Tuesday Blitz June 13 Early 2023"]
[White "Shuvalov, Evgenij"]
[Black "Matveeva, Olga"]
[WhiteFideId "4187237"]
[BlackFideId "24107018"]
[WhiteElo "2080"]
[BlackElo "2009"]
[Result "1-0"]
[Round "6"]
[TimeControl "180+2"]
[Date "2023.06.13"]
[WhiteClock "0:00:58"]
[BlackClock "0:00:11"]
[Board "126"]

1. d4 {[%clk 0:03:00]}  Nf6 {[%clk 0:02:59]} 2. c4 {[%clk 0:03:00]}  e6 {[%clk 0:02:59]} 3. Nc3 {[%clk 0:03:00]}  Bb4 {[%clk 0:02:58]} 4. e3 {[%clk 0:03:00]}  O-O {[%clk 0:02:57]} 5. a3 {[%clk 0:02:59]}  Bxc3+ {[%clk 0:02:53]} 6. bxc3 {[%clk 0:03:00]}  d6 {[%clk 0:02:49]} 7. Bd3 {[%clk 0:02:52]}  e5 {[%clk 0:02:47]} 8. e4 {[%clk 0:02:51]}  Nbd7 {[%clk 0:02:44]} 9. Ne2 {[%clk 0:02:48]}  Qe7 {[%clk 0:02:41]} 10. f3 {[%clk 0:02:30]}  Nh5 {[%clk 0:02:10]} 11. h4 {[%clk 0:02:23]}  f5 {[%clk 0:01:50]} 12. exf5 {[%clk 0:02:20]}  exd4 {[%clk 0:01:49]} 13. cxd4 {[%clk 0:02:18]}  Ng3 {[%clk 0:01:47]} 14. Bg5 {[%clk 0:02:00]}  Nf6 {[%clk 0:01:42]} 15. Kf2 {[%clk 0:01:43]}  Nxf5 {[%clk 0:01:42]} 16. Re1 {[%clk 0:01:34]}  h6 {[%clk 0:01:18]} 17. Ng3 {[%clk 0:01:29]}  Qf7 {[%clk 0:01:01]} 18. Nxf5 {[%clk 0:01:19]}  hxg5 {[%clk 0:01:00]} 19. hxg5 {[%clk 0:01:20]}  Nh5 {[%clk 0:00:30]} 20. Ne7+ {[%clk 0:01:10]}  Kh8 {[%clk 0:00:30]} 21. Bg6 {[%clk 0:01:04]}  Qxc4 {[%clk 0:00:21]} 22. Bxh5 {[%clk 0:01:03]}  Bf5 {[%clk 0:00:17]} 23. Rh1 {[%clk 0:01:00]}  Bh7 {[%clk 0:00:11]} 24. Bg6 {[%clk 0:00:58]} 1-0


[Site "https://www.chess.com"]

[Event "Titled Tuesday Blitz June 13 Early 2023"]
[White "Palencia Morales, Wilson Guillermo"]
[Black "Gracia Alvarez, Gerardo Antonio"]
[WhiteFideId "4401859"]
[BlackFideId "5109124"]
[WhiteElo "2144"]
[BlackElo "2160"]
[Result "1-0"]
[Round "6"]
[TimeControl "180+2"]
[Date "2023.06.13"]
[WhiteClock "0:01:40"]
[BlackClock "0:00:24"]
[Board "127"]

1. d4 {[%clk 0:02:56]}  Nf6 {[%clk 0:02:59]} 2. c4 {[%clk 0:02:55]}  c5 {[%clk 0:02:59]} 3. d5 {[%clk 0:02:55]}  b5 {[%clk 0:02:59]} 4. cxb5 {[%clk 0:02:56]}  a6 {[%clk 0:02:59]} 5. bxa6 {[%clk 0:02:56]}  g6 {[%clk 0:02:59]} 6. Nc3 {[%clk 0:02:57]}  Bg7 {[%clk 0:02:57]} 7. e4 {[%clk 0:02:57]}  O-O {[%clk 0:02:56]} 8. e5 {[%clk 0:02:57]}  Ne8 {[%clk 0:02:56]} 9. h4 {[%clk 0:02:58]}  Bxe5 {[%clk 0:02:49]} 10. h5 {[%clk 0:02:58]}  d6 {[%clk 0:02:38]} 11. Bh6 {[%clk 0:02:57]}  Ng7 {[%clk 0:02:30]} 12. hxg6 {[%clk 0:02:54]}  fxg6 {[%clk 0:02:16]} 13. Qd2 {[%clk 0:02:51]}  Nxa6 {[%clk 0:02:11]} 14. Nf3 {[%clk 0:02:50]}  Bf6 {[%clk 0:02:10]} 15. Ne4 {[%clk 0:02:46]}  Bf5 {[%clk 0:01:58]} 16. Ng3 {[%clk 0:02:24]}  Nb4 {[%clk 0:01:31]} 17. Nxf5 {[%clk 0:02:22]}  Nxf5 {[%clk 0:01:32]} 18. Bxf8 {[%clk 0:02:20]}  Qxf8 {[%clk 0:01:33]} 19. a3 {[%clk 0:02:15]}  Qg7 {[%clk 0:01:19]} 20. Rb1 {[%clk 0:02:15]}  Na6 {[%clk 0:01:19]} 21. Bd3 {[%clk 0:02:14]}  Nc7 {[%clk 0:01:14]} 22. Bxf5 {[%clk 0:02:13]}  gxf5 {[%clk 0:01:13]} 23. Kf1 {[%clk 0:02:10]}  Ra4 {[%clk 0:01:11]} 24. b4 {[%clk 0:01:57]}  c4 {[%clk 0:01:07]} 25. Qc2 {[%clk 0:01:49]}  Rxa3 {[%clk 0:00:58]} 26. Qxf5 {[%clk 0:01:47]}  Ra7 {[%clk 0:00:30]} 27. b5 {[%clk 0:01:45]}  c3 {[%clk 0:00:24]} 28. b6 {[%clk 0:01:40]} 1-0


[Site "https://www.chess.com"]

[Event "Titled Tuesday Blitz June 13 Early 2023"]
[White "Liu, Casper"]
[Black "Miller, Luke C"]
[WhiteFideId "1454153"]
[BlackFideId "2096935"]
[WhiteElo "2221"]
[BlackElo "1836"]
[Result "1-0"]
[Round "6"]
[TimeControl "180+2"]
[Date "2023.06.13"]
[WhiteClock "0:02:25"]
[BlackClock "0:00:14"]
[Board "131"]

1. e4 {[%clk 0:03:00]}  c5 {[%clk 0:03:00]} 2. Nc3 {[%clk 0:02:59]}  g6 {[%clk 0:02:59]} 3. Bc4 {[%clk 0:03:00]}  Bg7 {[%clk 0:02:59]} 4. d3 {[%clk 0:03:01]}  e6 {[%clk 0:02:59]} 5. f4 {[%clk 0:03:01]}  Ne7 {[%clk 0:02:59]} 6. Nf3 {[%clk 0:03:01]}  d5 {[%clk 0:02:58]} 7. exd5 {[%clk 0:03:02]}  exd5 {[%clk 0:02:58]} 8. Bb5+ {[%clk 0:03:03]}  Nbc6 {[%clk 0:02:58]} 9. O-O {[%clk 0:03:03]}  O-O {[%clk 0:02:58]} 10. Bxc6 {[%clk 0:03:03]}  Nxc6 {[%clk 0:02:57]} 11. Kh1 {[%clk 0:03:02]}  Rb8 {[%clk 0:02:52]} 12. Bd2 {[%clk 0:03:02]}  b5 {[%clk 0:02:51]} 13. Rb1 {[%clk 0:03:02]}  Re8 {[%clk 0:02:46]} 14. Ne2 {[%clk 0:03:00]}  a5 {[%clk 0:02:34]} 15. d4 {[%clk 0:02:59]}  c4 {[%clk 0:02:24]} 16. c3 {[%clk 0:02:57]}  Bf5 {[%clk 0:02:23]} 17. Rc1 {[%clk 0:02:55]}  Bd3 {[%clk 0:02:22]} 18. Re1 {[%clk 0:02:54]}  b4 {[%clk 0:02:15]} 19. Ng3 {[%clk 0:02:53]}  bxc3 {[%clk 0:02:10]} 20. Bxc3 {[%clk 0:02:53]}  Bh6 {[%clk 0:02:01]} 21. Qd2 {[%clk 0:02:52]}  Qd6 {[%clk 0:01:57]} 22. Ne5 {[%clk 0:02:50]}  Nxe5 {[%clk 0:01:36]} 23. dxe5 {[%clk 0:02:49]}  Qa6 {[%clk 0:01:16]} 24. Qf2 {[%clk 0:02:44]}  Qb6 {[%clk 0:01:02]} 25. Bd4 {[%clk 0:02:43]}  Qb5 {[%clk 0:01:01]} 26. Rcd1 {[%clk 0:02:42]}  Qa4 {[%clk 0:00:56]} 27. Bc3 {[%clk 0:02:40]}  Qxa2 {[%clk 0:00:55]} 28. e6 {[%clk 0:02:39]}  f6 {[%clk 0:00:22]} 29. Bxf6 {[%clk 0:02:36]}  Rf8 {[%clk 0:00:20]} 30. e7 {[%clk 0:02:31]}  Rxf6 {[%clk 0:00:14]} 31. e8=Q+ {[%clk 0:02:30]}  Rxe8 {[%clk 0:00:14]} 32. Rxe8+ {[%clk 0:02:30]}  Kf7 {[%clk 0:00:15]} 33. Rde1 {[%clk 0:02:27]}  Rxf4 {[%clk 0:00:14]} 34. Qa7+ {[%clk 0:02:25]}  Kf6 {[%clk 0:00:14]} 35. Qe7# {[%clk 0:02:25]} 1-0


[Site "https://www.chess.com"]

[Event "Titled Tuesday Blitz June 13 Early 2023"]
[White "Parpiev, Isaak"]
[Black "Mazurkiewicz, Michal"]
[WhiteFideId "34281576"]
[BlackFideId "1124943"]
[WhiteElo "2167"]
[BlackElo "2063"]
[Result "1-0"]
[Round "6"]
[TimeControl "180+2"]
[Date "2023.06.13"]
[WhiteClock "0:00:24"]
[BlackClock "0:00:00"]
[Board "132"]

1. Nf3 {[%clk 0:02:56]}  Nf6 {[%clk 0:02:59]} 2. b3 {[%clk 0:02:55]}  g6 {[%clk 0:03:00]} 3. Bb2 {[%clk 0:02:55]}  Bg7 {[%clk 0:03:01]} 4. g3 {[%clk 0:02:56]}  O-O {[%clk 0:03:01]} 5. Bg2 {[%clk 0:02:57]}  d6 {[%clk 0:03:02]} 6. d4 {[%clk 0:02:57]}  Re8 {[%clk 0:03:01]} 7. O-O {[%clk 0:02:57]}  Nbd7 {[%clk 0:03:02]} 8. a4 {[%clk 0:02:56]}  c6 {[%clk 0:02:58]} 9. a5 {[%clk 0:02:55]}  Qc7 {[%clk 0:02:55]} 10. Nbd2 {[%clk 0:02:39]}  e5 {[%clk 0:02:48]} 11. dxe5 {[%clk 0:02:39]}  dxe5 {[%clk 0:02:42]} 12. e4 {[%clk 0:02:39]}  Nc5 {[%clk 0:02:38]} 13. Qe2 {[%clk 0:02:39]}  Nfd7 {[%clk 0:02:30]} 14. Rfd1 {[%clk 0:02:26]}  Ne6 {[%clk 0:02:27]} 15. Nc4 {[%clk 0:02:26]}  f6 {[%clk 0:01:53]} 16. Nd6 {[%clk 0:02:21]}  Rd8 {[%clk 0:01:52]} 17. a6 {[%clk 0:02:05]}  b5 {[%clk 0:01:43]} 18. h4 {[%clk 0:01:58]}  Ndc5 {[%clk 0:01:42]} 19. Nxc8 {[%clk 0:01:58]}  Raxc8 {[%clk 0:01:42]} 20. Bh3 {[%clk 0:01:57]}  Kf7 {[%clk 0:01:18]} 21. h5 {[%clk 0:01:38]}  Rxd1+ {[%clk 0:01:14]} 22. Rxd1 {[%clk 0:01:35]}  Rd8 {[%clk 0:01:13]} 23. hxg6+ {[%clk 0:01:24]}  hxg6 {[%clk 0:01:13]} 24. Re1 {[%clk 0:01:14]}  Rh8 {[%clk 0:00:55]} 25. Bg4 {[%clk 0:01:09]}  g5 {[%clk 0:00:12]} 26. b4 {[%clk 0:00:51]}  Nxa6 {[%clk 0:00:09]} 27. Bc3 {[%clk 0:00:50]}  Qe7 {[%clk 0:00:08]} 28. Ra1 {[%clk 0:00:46]}  Nac7 {[%clk 0:00:05]} 29. Rxa7 {[%clk 0:00:45]}  Ra8 {[%clk 0:00:06]} 30. Rxa8 {[%clk 0:00:37]}  Nxa8 {[%clk 0:00:06]} 31. Kg2 {[%clk 0:00:37]}  Nb6 {[%clk 0:00:04]} 32. Bh5+ {[%clk 0:00:35]}  Kg8 {[%clk 0:00:04]} 33. Nh2 {[%clk 0:00:34]}  Nc4 {[%clk 0:00:04]} 34. Qf3 {[%clk 0:00:34]}  Nf8 {[%clk 0:00:03]} 35. Ng4 {[%clk 0:00:31]}  c5 {[%clk 0:00:03]} 36. bxc5 {[%clk 0:00:28]}  Qxc5 {[%clk 0:00:04]} 37. Nxf6+ {[%clk 0:00:28]}  Bxf6 {[%clk 0:00:03]} 38. Qxf6 {[%clk 0:00:28]}  Qc7 {[%clk 0:00:02]} 39. Qxg5+ {[%clk 0:00:29]}  Qg7 {[%clk 0:00:02]} 40. Qf5 {[%clk 0:00:24]}  Nd6 {[%clk 0:00:02]} 41. Qxe5 {[%clk 0:00:18]}  Qxe5 {[%clk 0:00:03]} 42. Bxe5 {[%clk 0:00:19]}  Nxe4 {[%clk 0:00:03]} 43. Bf3 {[%clk 0:00:18]}  Nd2 {[%clk 0:00:03]} 44. Bd5+ {[%clk 0:00:18]}  Kh7 {[%clk 0:00:03]} 45. Bc3 {[%clk 0:00:19]}  Nb1 {[%clk 0:00:03]} 46. Bb4 {[%clk 0:00:19]}  Nd7 {[%clk 0:00:04]} 47. Ba2 {[%clk 0:00:20]}  Ne5 {[%clk 0:00:02]} 48. Bxb1 {[%clk 0:00:20]}  Nc6 {[%clk 0:00:02]} 49. g4 {[%clk 0:00:20]}  Nxb4 {[%clk 0:00:03]} 50. c3+ {[%clk 0:00:21]}  Kg7 {[%clk 0:00:02]} 51. cxb4 {[%clk 0:00:21]}  Kf6 {[%clk 0:00:02]} 52. f4 {[%clk 0:00:22]}  Ke6 {[%clk 0:00:02]} 53. Kf3 {[%clk 0:00:23]}  Kd5 {[%clk 0:00:00]} 54. Bd3 {[%clk 0:00:24]} 1-0


[Site "https://www.chess.com"]

[Event "Titled Tuesday Blitz June 13 Early 2023"]
[White "Koridze, Lile"]
[Black "Chernomordik, Pavel"]
[WhiteFideId "13612514"]
[BlackFideId "2804530"]
[WhiteElo "2047"]
[BlackElo "2193"]
[Result "0-1"]
[Round "6"]
[TimeControl "180+2"]
[Date "2023.06.13"]
[WhiteClock "0:01:18"]
[BlackClock "0:01:09"]
[Board "135"]

1. d4 {[%clk 0:03:00]}  g6 {[%clk 0:02:59]} 2. c4 {[%clk 0:03:01]}  Bg7 {[%clk 0:02:59]} 3. Nc3 {[%clk 0:02:59]}  d6 {[%clk 0:02:59]} 4. e4 {[%clk 0:02:59]}  c6 {[%clk 0:02:59]} 5. Nf3 {[%clk 0:02:58]}  a6 {[%clk 0:02:59]} 6. Be2 {[%clk 0:02:57]}  Nf6 {[%clk 0:02:58]} 7. O-O {[%clk 0:02:57]}  O-O {[%clk 0:02:57]} 8. h3 {[%clk 0:02:56]}  b5 {[%clk 0:02:56]} 9. cxb5 {[%clk 0:02:56]}  axb5 {[%clk 0:02:56]} 10. Be3 {[%clk 0:02:55]}  b4 {[%clk 0:02:55]} 11. Na4 {[%clk 0:02:55]}  Nxe4 {[%clk 0:02:53]} 12. d5 {[%clk 0:02:51]}  c5 {[%clk 0:02:51]} 13. Rc1 {[%clk 0:02:49]}  Ba6 {[%clk 0:02:43]} 14. b3 {[%clk 0:02:47]}  Nd7 {[%clk 0:02:38]} 15. Bxa6 {[%clk 0:02:46]}  Rxa6 {[%clk 0:02:38]} 16. Qd3 {[%clk 0:02:46]}  Rxa4 {[%clk 0:02:34]} 17. bxa4 {[%clk 0:02:46]}  Nc3 {[%clk 0:02:33]} 18. Rc2 {[%clk 0:02:43]}  Nxa4 {[%clk 0:02:30]} 19. Nd2 {[%clk 0:02:40]}  Ne5 {[%clk 0:02:27]} 20. Qe2 {[%clk 0:02:40]}  Nc3 {[%clk 0:02:26]} 21. Qa6 {[%clk 0:02:39]}  Qa8 {[%clk 0:02:24]} 22. Qxa8 {[%clk 0:02:34]}  Rxa8 {[%clk 0:02:23]} 23. Nb1 {[%clk 0:02:21]}  Nxd5 {[%clk 0:02:21]} 24. Bxc5 {[%clk 0:02:12]}  dxc5 {[%clk 0:02:19]} 25. Rxc5 {[%clk 0:02:12]}  e6 {[%clk 0:02:19]} 26. Rb5 {[%clk 0:02:07]}  Bf6 {[%clk 0:02:17]} 27. Rc1 {[%clk 0:02:02]}  Rxa2 {[%clk 0:02:14]} 28. Rc8+ {[%clk 0:01:51]}  Kg7 {[%clk 0:02:13]} 29. f4 {[%clk 0:01:45]}  Nxf4 {[%clk 0:01:59]} 30. Rxb4 {[%clk 0:01:44]}  Nxg2 {[%clk 0:01:54]} 31. Nc3 {[%clk 0:01:42]}  Rc2 {[%clk 0:01:53]} 32. Rbb8 {[%clk 0:01:38]}  Nf4 {[%clk 0:01:51]} 33. Ne4 {[%clk 0:01:32]}  Nxh3+ {[%clk 0:01:43]} 34. Kf1 {[%clk 0:01:32]}  Rxc8 {[%clk 0:01:39]} 35. Rxc8 {[%clk 0:01:32]}  Nf4 {[%clk 0:01:38]} 36. Nd6 {[%clk 0:01:32]}  Be7 {[%clk 0:01:33]} 37. Ne8+ {[%clk 0:01:31]}  Kh6 {[%clk 0:01:32]} 38. Rc7 {[%clk 0:01:31]}  Nd5 {[%clk 0:01:32]} 39. Ra7 {[%clk 0:01:30]}  Kg5 {[%clk 0:01:29]} 40. Ra5 {[%clk 0:01:28]}  Kf5 {[%clk 0:01:25]} 41. Ng7+ {[%clk 0:01:26]}  Ke4 {[%clk 0:01:22]} 42. Ra7 {[%clk 0:01:26]}  h5 {[%clk 0:01:20]} 43. Ne8 {[%clk 0:01:25]}  h4 {[%clk 0:01:18]} 44. Kg2 {[%clk 0:01:25]}  g5 {[%clk 0:01:18]} 45. Ra4+ {[%clk 0:01:23]}  Kf5 {[%clk 0:01:17]} 46. Ng7+ {[%clk 0:01:23]}  Kg6 {[%clk 0:01:17]} 47. Ne8 {[%clk 0:01:23]}  g4 {[%clk 0:01:14]} 48. Ra7 {[%clk 0:01:21]}  Nf4+ {[%clk 0:01:10]} 49. Kg1 {[%clk 0:01:18]}  Bc5+ {[%clk 0:01:09]} 0-1


[Site "https://www.chess.com"]

[Event "Titled Tuesday Blitz June 13 Early 2023"]
[White "Begunov, Konstantin"]
[Black "Ai, Evan"]
[WhiteFideId "4118510"]
[BlackFideId "2094770"]
[WhiteElo "1993"]
[BlackElo "1963"]
[Result "1-0"]
[Round "6"]
[TimeControl "180+2"]
[Date "2023.06.13"]
[WhiteClock "0:00:21"]
[BlackClock "0:00:03"]
[Board "137"]

1. d4 {[%clk 0:02:59]}  Nf6 {[%clk 0:02:58]} 2. c4 {[%clk 0:02:58]}  e6 {[%clk 0:02:59]} 3. Nf3 {[%clk 0:02:59]}  b6 {[%clk 0:02:59]} 4. g3 {[%clk 0:02:58]}  Bb7 {[%clk 0:02:59]} 5. Bg2 {[%clk 0:02:58]}  Be7 {[%clk 0:03:00]} 6. Nc3 {[%clk 0:02:59]}  O-O {[%clk 0:03:00]} 7. Qc2 {[%clk 0:03:00]}  d5 {[%clk 0:03:00]} 8. cxd5 {[%clk 0:03:00]}  Nxd5 {[%clk 0:02:59]} 9. O-O {[%clk 0:02:59]}  Nxc3 {[%clk 0:02:57]} 10. bxc3 {[%clk 0:02:58]}  Nd7 {[%clk 0:02:57]} 11. Ng5 {[%clk 0:02:55]}  Bxg5 {[%clk 0:02:55]} 12. Bxb7 {[%clk 0:02:55]}  Rb8 {[%clk 0:02:55]} 13. Bc6 {[%clk 0:02:54]}  Bxc1 {[%clk 0:02:52]} 14. Rfxc1 {[%clk 0:02:45]}  Nf6 {[%clk 0:02:52]} 15. Bf3 {[%clk 0:02:35]}  Qe7 {[%clk 0:02:50]} 16. e4 {[%clk 0:02:33]}  c5 {[%clk 0:02:50]} 17. a4 {[%clk 0:02:30]}  Rfc8 {[%clk 0:02:48]} 18. Qb2 {[%clk 0:02:29]}  e5 {[%clk 0:02:42]} 19. Re1 {[%clk 0:02:15]}  Nd7 {[%clk 0:02:35]} 20. a5 {[%clk 0:02:11]}  b5 {[%clk 0:02:34]} 21. Bg4 {[%clk 0:02:04]}  cxd4 {[%clk 0:02:07]} 22. cxd4 {[%clk 0:02:02]}  Rc4 {[%clk 0:02:06]} 23. Bxd7 {[%clk 0:01:24]}  Qxd7 {[%clk 0:02:07]} 24. dxe5 {[%clk 0:01:25]}  Qc6 {[%clk 0:02:05]} 25. Qe2 {[%clk 0:01:10]}  b4 {[%clk 0:02:04]} 26. Rab1 {[%clk 0:01:06]}  b3 {[%clk 0:02:04]} 27. Red1 {[%clk 0:01:00]}  g6 {[%clk 0:01:45]} 28. Rd6 {[%clk 0:00:51]}  Qb5 {[%clk 0:01:25]} 29. Qd3 {[%clk 0:00:43]}  Qxe5 {[%clk 0:01:16]} 30. Qxc4 {[%clk 0:00:21]}  Qxd6 {[%clk 0:01:15]} 31. Kg2 {[%clk 0:00:19]}  Qe6 {[%clk 0:01:07]} 32. Qxe6 {[%clk 0:00:18]}  fxe6 {[%clk 0:01:08]} 33. Rb2 {[%clk 0:00:18]}  Kf7 {[%clk 0:01:08]} 34. Kf3 {[%clk 0:00:18]}  Kf6 {[%clk 0:01:08]} 35. Ke3 {[%clk 0:00:19]}  Ke5 {[%clk 0:01:09]} 36. f4+ {[%clk 0:00:19]}  Kd6 {[%clk 0:01:09]} 37. Kd4 {[%clk 0:00:20]}  Rb4+ {[%clk 0:01:09]} 38. Kd3 {[%clk 0:00:19]}  e5 {[%clk 0:01:01]} 39. f5 {[%clk 0:00:19]}  gxf5 {[%clk 0:01:01]} 40. exf5 {[%clk 0:00:20]}  Ke7 {[%clk 0:00:55]} 41. Kc3 {[%clk 0:00:20]}  Rb5 {[%clk 0:00:54]} 42. Rxb3 {[%clk 0:00:21]}  Rxb3+ {[%clk 0:00:54]} 43. Kxb3 {[%clk 0:00:22]}  Kf6 {[%clk 0:00:54]} 44. g4 {[%clk 0:00:22]}  h5 {[%clk 0:00:50]} 45. h3 {[%clk 0:00:22]}  Kg5 {[%clk 0:00:42]} 46. Kc2 {[%clk 0:00:22]}  h4 {[%clk 0:00:36]} 47. Kd3 {[%clk 0:00:21]}  Kf4 {[%clk 0:00:27]} 48. f6 {[%clk 0:00:21]}  Kg3 {[%clk 0:00:17]} 49. f7 {[%clk 0:00:22]}  Kxh3 {[%clk 0:00:17]} 50. f8=Q {[%clk 0:00:22]}  Kxg4 {[%clk 0:00:11]} 51. Ke3 {[%clk 0:00:22]}  h3 {[%clk 0:00:10]} 52. Qf3+ {[%clk 0:00:22]}  Kh4 {[%clk 0:00:10]} 53. Ke4 {[%clk 0:00:21]}  h2 {[%clk 0:00:10]} 54. Qg2 {[%clk 0:00:21]}  h1=Q {[%clk 0:00:08]} 55. Qxh1+ {[%clk 0:00:21]}  Kg3 {[%clk 0:00:08]} 56. Qf3+ {[%clk 0:00:22]}  Kh4 {[%clk 0:00:05]} 57. Qg2 {[%clk 0:00:22]}  a6 {[%clk 0:00:03]} 58. Kf5 {[%clk 0:00:21]} 1-0


[Site "https://www.chess.com"]

[Event "Titled Tuesday Blitz June 13 Early 2023"]
[White "Cruz Mendez, Jean Marco"]
[Black "Tarasova, Viktoriya"]
[WhiteFideId "3526402"]
[BlackFideId "4175840"]
[WhiteElo "2064"]
[BlackElo "2182"]
[Result "1-0"]
[Round "6"]
[TimeControl "180+2"]
[Date "2023.06.13"]
[WhiteClock "0:02:43"]
[BlackClock "0:02:35"]
[Board "138"]

1. e4 {[%clk 0:03:00]}  e5 {[%clk 0:02:56]} 2. Nf3 {[%clk 0:03:00]}  Nc6 {[%clk 0:02:56]} 3. Bc4 {[%clk 0:02:59]}  Bc5 {[%clk 0:02:56]} 4. c3 {[%clk 0:02:59]}  Nf6 {[%clk 0:02:55]} 5. d4 {[%clk 0:02:59]}  d6 {[%clk 0:02:56]} 6. dxc5 {[%clk 0:02:58]}  dxc5 {[%clk 0:02:55]} 7. Qxd8+ {[%clk 0:02:57]}  Kxd8 {[%clk 0:02:55]} 8. Bg5 {[%clk 0:02:57]}  Ke7 {[%clk 0:02:55]} 9. Nbd2 {[%clk 0:02:55]}  h6 {[%clk 0:02:54]} 10. Bxf6+ {[%clk 0:02:55]}  Kxf6 {[%clk 0:02:54]} 11. O-O-O {[%clk 0:02:55]}  Be6 {[%clk 0:02:53]} 12. Bxe6 {[%clk 0:02:55]}  Kxe6 {[%clk 0:02:53]} 13. Nc4 {[%clk 0:02:56]}  b5 {[%clk 0:02:52]} 14. Ne3 {[%clk 0:02:56]}  a5 {[%clk 0:02:52]} 15. Nd5 {[%clk 0:02:56]}  Rhc8 {[%clk 0:02:51]} 16. g4 {[%clk 0:02:45]}  a4 {[%clk 0:02:51]} 17. g5 {[%clk 0:02:45]}  h5 {[%clk 0:02:50]} 18. g6 {[%clk 0:02:44]}  f6 {[%clk 0:02:49]} 19. Nh4 {[%clk 0:02:43]}  a3 {[%clk 0:02:35]} 20. b3 {[%clk 0:02:43]} 1-0


[Site "https://www.chess.com"]